[Event "6e festival d'échecs d'Allauch"]
[Site "Allauch, France"]
[Date "2024.08.30"]
[Round "8.3"]
[White "Degraeve, Jean-Marc"]
[Black "Petrosyan, Armen"]
[Result "1-0"]
[TimeControl "1 h 30 min (+30s/coup)"]
[WhiteElo "2487"]
[BlackElo "2344"]

1. e4 {[%clk 01:30:56]} {[%emt 00:00:03]} c6 {[%clk 01:30:51]} {[%emt
00:00:11]} 2. Nf3 {[%clk 01:30:59]} {[%emt 00:00:28]} d5 {[%clk 01:31:15]}
{[%emt 00:00:04]} 3. Nc3 {[%clk 01:30:57]} {[%emt 00:00:32]} Bg4 {[%clk
01:31:34]} {[%emt 00:00:10]} 4. h3 {[%clk 01:31:09]} {[%emt 00:00:17]} Bxf3
{[%clk 01:31:57]} {[%emt 00:00:08]} 5. Qxf3 {[%clk 01:31:30]} {[%emt 00:00:09]}
e6 {[%clk 01:32:16]} {[%emt 00:00:11]} 6. d4 {[%clk 01:29:03]} {[%emt
00:02:56]} Nf6 {[%clk 01:31:57]} {[%emt 00:00:49]} 7. exd5 {[%clk 01:26:19]}
{[%emt 00:03:15]} cxd5 {[%clk 01:31:48]} {[%emt 00:00:39]} 8. Bd3 {[%clk
01:26:42]} {[%emt 00:00:06]} Nc6 {[%clk 01:31:10]} {[%emt 00:01:09]} 9. Ne2
{[%clk 01:26:46]} {[%emt 00:00:26]} Bd6 {[%clk 01:22:03]} {[%emt 00:09:37]} 10.
c3 {[%clk 01:21:53]} {[%emt 00:05:23]} h6 {[%clk 01:18:01]} {[%emt 00:04:31]}
11. O-O {[%clk 01:20:05]} {[%emt 00:02:17]} O-O {[%clk 01:14:28]} {[%emt
00:04:03]} 12. Nf4 {[%clk 01:18:29]} {[%emt 00:02:06]} Re8 {[%clk 01:06:41]}
{[%emt 00:08:17]} 13. Nh5 {[%clk 01:15:17]} {[%emt 00:03:42]} Nxh5 {[%clk
01:06:19]} {[%emt 00:00:52]} 14. Qxh5 {[%clk 01:15:46]} {[%emt 00:00:01]} Qf6
{[%clk 01:04:38]} {[%emt 00:02:10]} 15. Be3 {[%clk 01:15:24]} {[%emt 00:00:53]}
Ne7 {[%clk 00:44:36]} {[%emt 00:20:32]} 16. Rfe1 {[%clk 01:14:11]} {[%emt
00:01:42]} Bf4 {[%clk 00:39:17]} {[%emt 00:05:49]} 17. Bxf4 {[%clk 01:13:33]}
{[%emt 00:01:09]} Qxf4 {[%clk 00:39:43]} {[%emt 00:00:04]} 18. Re3 {[%clk
01:13:54]} {[%emt 00:00:09]} g6 {[%clk 00:37:52]} {[%emt 00:02:22]} 19. Qe2
{[%clk 01:13:30]} {[%emt 00:00:53]} Nf5 {[%clk 00:35:24]} {[%emt 00:02:58]} 20.
Rf3 {[%clk 01:13:00]} {[%emt 00:01:00]} Qd6 {[%clk 00:27:00]} {[%emt 00:08:54]}
21. Bxf5 {[%clk 01:12:45]} {[%emt 00:00:45]} exf5 {[%clk 00:27:25]} {[%emt
00:00:05]} 22. Re3 {[%clk 01:13:10]} {[%emt 00:00:05]} Re4 {[%clk 00:25:49]}
{[%emt 00:02:05]} 23. f3 {[%clk 01:12:18]} {[%emt 00:01:22]} Re6 {[%clk
00:25:42]} {[%emt 00:00:37]} 24. Re1 {[%clk 01:12:02]} {[%emt 00:00:46]} Rae8
{[%clk 00:25:53]} {[%emt 00:00:20]} 25. Re5 {[%clk 01:11:16]} {[%emt 00:01:16]}
Rxe5 {[%clk 00:21:35]} {[%emt 00:04:49]} 26. dxe5 {[%clk 01:11:43]} {[%emt
00:00:02]} Qb6+ {[%clk 00:21:57]} {[%emt 00:00:09]} 27. Qf2 {[%clk 01:10:29]}
{[%emt 00:01:43]} Qxf2+ {[%clk 00:21:31]} {[%emt 00:00:57]} 28. Kxf2 {[%clk
01:10:57]} {[%emt 00:00:02]} f4 {[%clk 00:21:50]} {[%emt 00:00:11]} 29. g3
{[%clk 01:09:57]} {[%emt 00:01:31]} fxg3+ {[%clk 00:21:46]} {[%emt 00:00:34]}
30. Kxg3 {[%clk 01:10:25]} {[%emt 00:00:01]} Kf8 {[%clk 00:22:07]} {[%emt
00:00:09]} 31. Kf4 {[%clk 01:06:01]} {[%emt 00:04:54]} Ke7 {[%clk 00:22:03]}
{[%emt 00:00:33]} 32. Ke3 {[%clk 01:06:24]} {[%emt 00:00:07]} Ke6 {[%clk
00:22:24]} {[%emt 00:00:09]} 33. Kd4 {[%clk 01:06:46]} {[%emt 00:00:08]} Rc8
{[%clk 00:18:26]} {[%emt 00:04:28]} 34. b3 {[%clk 01:07:12]} {[%emt 00:00:05]}
a5 {[%clk 00:18:28]} {[%emt 00:00:28]} 35. a4 {[%clk 01:06:46]} {[%emt
00:00:56]} Rc6 {[%clk 00:18:39]} {[%emt 00:00:20]} 36. Rb1 {[%clk 01:06:05]}
{[%emt 00:01:10]} Rc7 {[%clk 00:08:32]} {[%emt 00:10:38]} 37. c4 {[%clk
01:01:01]} {[%emt 00:05:34]} dxc4 {[%clk 00:08:52]} {[%emt 00:00:10]} 38. bxc4
{[%clk 01:01:30]} {[%emt 00:00:01]} Kf5 {[%clk 00:08:37]} {[%emt 00:00:45]} 39.
Rb6 {[%clk 01:01:55]} {[%emt 00:00:05]} Rd7+ {[%clk 00:05:25]} {[%emt
00:03:42]} 40. Rd6 {[%clk 01:01:24]} {[%emt 00:01:01]} Rxd6+ {[%clk 00:05:51]}
{[%emt 00:00:05]} 41. exd6 {[%clk 01:01:49]} {[%emt 00:00:04]} Ke6 {[%clk
00:06:18]} {[%emt 00:00:03]} 42. c5 {[%clk 01:02:14]} {[%emt 00:00:05]} b6
{[%clk 00:01:41]} {[%emt 00:05:07]} 43. cxb6 {[%clk 01:02:26]} {[%emt
00:00:18]} Kxd6 {[%clk 00:02:09]} {[%emt 00:00:03]} 44. b7 {[%clk 01:02:49]}
{[%emt 00:00:07]} Kc7 {[%clk 00:02:36]} {[%emt 00:00:04]} 45. Ke5 {[%clk
01:03:15]} {[%emt 00:00:04]} Kxb7 {[%clk 00:02:48]} {[%emt 00:00:18]} 46. Kf6
{[%clk 01:03:39]} {[%emt 00:00:05]} Kc6 {[%clk 00:03:13]} {[%emt 00:00:05]} 47.
Kxf7 {[%clk 01:04:04]} {[%emt 00:00:04]} g5 {[%clk 00:03:35]} {[%emt 00:00:08]}
48. Kg6 {[%clk 01:04:29]} {[%emt 00:00:04]} Kc5 {[%clk 00:04:02]} {[%emt
00:00:04]} 49. Kxh6 {[%clk 01:04:55]} {[%emt 00:00:04]} Kb4 {[%clk 00:04:30]}
{[%emt 00:00:03]} 50. Kxg5 {[%clk 01:05:19]} {[%emt 00:00:06]} Kxa4 {[%clk
00:04:57]} {[%emt 00:00:04]} 51. h4 {[%clk 01:05:42]} {[%emt 00:00:06]} 1-0

[Event "6e festival d'échecs d'Allauch"]
[Site "Allauch, France"]
[Date "2024.08.30"]
[Round "8.4"]
[White "Chaumet, Etienne"]
[Black "Massardo, Quentin"]
[Result "1-0"]
[TimeControl "1 h 30 min (+30s/coup)"]
[WhiteElo "2077"]
[BlackElo "2050"]

1. e4 {[%clk 01:30:57]} {[%emt 00:00:03]} c5 {[%clk 01:26:16]} {[%emt
00:04:43]} 2. Nf3 {[%clk 01:31:18]} {[%emt 00:00:09]} Nc6 {[%clk 01:26:40]}
{[%emt 00:00:06]} 3. d4 {[%clk 01:31:41]} {[%emt 00:00:07]} cxd4 {[%clk
01:27:05]} {[%emt 00:00:06]} 4. Nxd4 {[%clk 01:32:04]} {[%emt 00:00:06]} e5
{[%clk 01:27:29]} {[%emt 00:00:06]} 5. Nb5 {[%clk 01:32:25]} {[%emt 00:00:08]}
d6 {[%clk 01:27:55]} {[%emt 00:00:05]} 6. c4 {[%clk 01:32:47]} {[%emt
00:00:08]} g6 {[%clk 01:28:19]} {[%emt 00:00:06]} 7. Be3 {[%clk 01:32:27]}
{[%emt 00:00:50]} Be6 {[%clk 01:28:43]} {[%emt 00:00:06]} 8. Bd3 {[%clk
01:31:04]} {[%emt 00:01:53]} a6 {[%clk 01:25:23]} {[%emt 00:03:50]} 9. N5c3
{[%clk 01:31:11]} {[%emt 00:00:22]} Bg7 {[%clk 01:25:21]} {[%emt 00:00:32]} 10.
O-O {[%clk 01:29:04]} {[%emt 00:02:37]} Nge7 {[%clk 01:24:21]} {[%emt
00:01:31]} 11. Nd5 {[%clk 01:22:58]} {[%emt 00:06:35]} Nd4 {[%clk 01:20:39]}
{[%emt 00:04:13]} 12. Nbc3 {[%clk 01:20:10]} {[%emt 00:03:18]} O-O {[%clk
01:20:06]} {[%emt 00:01:03]} 13. Qd2 {[%clk 01:12:58]} {[%emt 00:07:42]} Rb8
{[%clk 01:11:52]} {[%emt 00:08:44]} 14. Rad1 {[%clk 01:05:58]} {[%emt
00:07:30]} b5 {[%clk 01:02:51]} {[%emt 00:09:32]} 15. Nxe7+ {[%emt 00:11:11]}
Qxe7 {[%clk 01:02:44]} {[%emt 00:00:33]} 16. cxb5 {[%clk 00:55:42]} {[%emt
00:00:08]} axb5 {[%clk 00:58:18]} {[%emt 00:04:57]} 17. Bxd4 {[%clk 00:48:00]}
{[%emt 00:08:12]} exd4 {[%clk 00:57:22]} {[%emt 00:01:26]} 18. Nxb5 {[%clk
00:48:08]} {[%emt 00:00:21]} Bxa2 {[%clk 00:56:13]} {[%emt 00:01:39]} 19. Ra1
{[%clk 00:39:00]} {[%emt 00:09:39]} Be6 {[%clk 00:41:23]} {[%emt 00:15:21]} 20.
Ra7 {[%clk 00:29:41]} {[%emt 00:09:49]} Qd8 {[%clk 00:36:07]} {[%emt 00:05:46]}
21. Rc1 {[%clk 00:24:54]} {[%emt 00:05:16]} Qb6 {[%clk 00:25:44]} {[%emt
00:10:54]} 22. Rac7 {[%clk 00:24:02]} {[%emt 00:01:21]} Ra8 {[%clk 00:19:40]}
{[%emt 00:06:35]} 23. R7c6 {[%clk 00:23:49]} {[%emt 00:00:43]} Qa5 {[%clk
00:19:58]} {[%emt 00:00:13]} 24. Qxa5 {[%clk 00:22:19]} {[%emt 00:02:00]} Rxa5
{[%clk 00:20:27]} {[%emt 00:00:01]} 25. Rxd6 {[%clk 00:17:27]} {[%emt
00:05:21]} Rb8 {[%clk 00:19:22]} {[%emt 00:01:35]} 26. Nxd4 {[%clk 00:17:30]}
{[%emt 00:00:27]} Be5 {[%clk 00:19:25]} {[%emt 00:00:27]} 27. Nc6 {[%clk
00:17:33]} {[%emt 00:00:27]} Bxd6 {[%clk 00:12:44]} {[%emt 00:07:11]} 28. Nxa5
{[%clk 00:17:54]} {[%emt 00:00:08]} Bf4 {[%clk 00:10:28]} {[%emt 00:02:47]} 29.
Rc2 {[%clk 00:16:56]} {[%emt 00:01:27]} Ba2 {[%clk 00:09:57]} {[%emt 00:01:01]}
30. g3 {[%clk 00:15:22]} {[%emt 00:02:05]} Bh6 {[%clk 00:09:16]} {[%emt
00:01:10]} 31. Re2 {[%clk 00:12:36]} {[%emt 00:03:16]} Be6 {[%clk 00:05:21]}
{[%emt 00:04:26]} 32. Bc4 {[%clk 00:11:41]} {[%emt 00:01:24]} Bg4 {[%clk
00:05:38]} {[%emt 00:00:13]} 33. Rc2 {[%clk 00:09:25]} {[%emt 00:02:46]} Bd1
{[%clk 00:06:01]} {[%emt 00:00:07]} 34. Rc3 {[%clk 00:09:38]} {[%emt 00:00:17]}
Rxb2 {[%clk 00:05:01]} {[%emt 00:01:31]} 35. Rd3 {[%clk 00:09:28]} {[%emt
00:00:39]} Ba4 {[%clk 00:04:15]} {[%emt 00:01:16]} 36. Rf3 {[%clk 00:08:26]}
{[%emt 00:01:32]} Be8 {[%clk 00:03:33]} {[%emt 00:01:12]} 37. Bd5 {[%clk
00:08:29]} {[%emt 00:00:27]} Kg7 {[%clk 00:02:04]} {[%emt 00:02:00]} 38. Nc4
{[%clk 00:08:42]} {[%emt 00:00:16]} Rb1+ {[%clk 00:02:29]} {[%emt 00:00:04]} 39.
Kg2 {[%clk 00:09:06]} {[%emt 00:00:06]} f6 {[%clk 00:02:50]} {[%emt 00:00:09]}
40. Ra3 {[%clk 00:08:56]} {[%emt 00:00:40]} Bc1 {[%clk 00:01:44]} {[%emt
00:01:37]} 41. Ra8 {[%clk 00:08:15]} {[%emt 00:01:10]} Bb5 {[%clk 00:01:39]}
{[%emt 00:00:35]} 42. Rb8 {[%clk 00:08:15]} {[%emt 00:00:31]} f5 {[%clk
00:01:21]} {[%emt 00:00:48]} 43. Rb7+ {[%clk 00:07:57]} {[%emt 00:00:47]} Kh6
{[%clk 00:01:20]} {[%emt 00:00:32]} 44. h4 {[%clk 00:03:48]} {[%emt 00:04:39]}
fxe4 {[%clk 00:00:31]} {[%emt 00:01:19]} 45. Bc6 {[%clk 00:03:14]} {[%emt
00:01:03]} e3 {[%clk 00:00:53]} {[%emt 00:00:09]} 46. Bf3 {[%clk 00:02:45]}
{[%emt 00:00:58]} Rb3 {[%clk 00:00:57]} {[%emt 00:00:26]} 47. Ne5 {[%emt
00:01:15]} Bf1+ {[%clk 00:00:45]} {[%emt 00:00:32]} 48. Kxf1 {[%clk 00:02:32]}
{[%emt 00:00:09]} Rxb7 {[%clk 00:01:09]} {[%emt 00:00:06]} 49. Bxb7 {[%clk
00:02:53]} {[%emt 00:00:09]} exf2 {[%clk 00:01:23]} {[%emt 00:00:16]} 50. Bf3
{[%clk 00:02:54]} {[%emt 00:00:28]} Kg7 {[%clk 00:01:25]} {[%emt 00:00:29]} 51.
Nd3 {[%clk 00:02:18]} {[%emt 00:01:06]} Be3 {[%clk 00:01:30]} {[%emt 00:00:24]}
52. Nxf2 {[%clk 00:02:42]} {[%emt 00:00:06]} Bb6 {[%clk 00:01:53]} {[%emt
00:00:07]} 53. Ne4 {[%clk 00:03:00]} {[%emt 00:00:12]} Ba5 {[%clk 00:01:32]}
{[%emt 00:00:52]} 54. Ke2 {[%clk 00:03:23]} {[%emt 00:00:07]} Bb4 {[%clk
00:01:50]} {[%emt 00:00:12]} 55. Ke3 {[%clk 00:03:37]} {[%emt 00:00:16]} Be1
{[%clk 00:01:59]} {[%emt 00:00:20]} 56. Kf4 {[%clk 00:03:46]} {[%emt 00:00:21]}
Ba5 {[%clk 00:02:20]} {[%emt 00:00:09]} 57. Ke5 {[%clk 00:03:53]} {[%emt
00:00:22]} Bb4 {[%clk 00:01:54]} {[%emt 00:00:57]} 58. Ke6 {[%clk 00:04:16]}
{[%emt 00:00:07]} Ba5 {[%clk 00:02:17]} {[%emt 00:00:06]} 59. Be2 {[%clk
00:03:45]} {[%emt 00:01:02]} Bb4 {[%clk 00:02:34]} {[%emt 00:00:14]} 60. Bd3
{[%clk 00:03:26]} {[%emt 00:00:48]} Ba5 {[%clk 00:02:30]} {[%emt 00:00:33]} 61.
Ng5 {[%clk 00:03:02]} {[%emt 00:00:54]} Be1 {[%clk 00:02:53]} {[%emt 00:00:07]}
62. Ne4 {[%clk 00:03:28]} {[%emt 00:00:04]} Ba5 {[%clk 00:03:21]} {[%emt
00:00:02]} 63. g4 {[%clk 00:02:50]} {[%emt 00:01:08]} Be1 {[%clk 00:03:45]}
{[%emt 00:00:06]} 64. h5 {[%clk 00:03:13]} {[%emt 00:00:06]} gxh5 {[%clk
00:04:09]} {[%emt 00:00:06]} 65. gxh5 {[%clk 00:03:41]} {[%emt 00:00:02]} Bh4
{[%clk 00:02:44]} {[%emt 00:01:56]} 66. Nd6 {[%clk 00:03:46]} {[%emt 00:00:25]}
Bg5 {[%clk 00:01:36]} {[%emt 00:01:37]} 67. Kf5 {[%clk 00:03:15]} {[%emt
00:01:01]} Be7 {[%clk 00:01:34]} {[%emt 00:00:32]} 68. Ne8+ {[%clk 00:03:30]}
{[%emt 00:00:15]} Kf7 {[%clk 00:01:56]} {[%emt 00:00:08]} 69. Nc7 {[%clk
00:03:51]} {[%emt 00:00:09]} h6 {[%clk 00:01:23]} {[%emt 00:01:03]} 70. Ne6
{[%clk 00:04:04]} {[%emt 00:00:17]} Ba3 {[%clk 00:00:56]} {[%emt 00:00:58]} 71.
Bc4 {[%clk 00:04:21]} {[%emt 00:00:13]} Bc1 {[%clk 00:01:22]} {[%emt 00:00:04]}
72. Nd4+ {[%clk 00:04:36]} {[%emt 00:00:15]} Kg7 {[%clk 00:01:46]} {[%emt
00:00:06]} 73. Ke6 {[%clk 00:04:59]} {[%emt 00:00:08]} Bg5 {[%clk 00:01:57]}
{[%emt 00:00:18]} 74. Bd5 {[%clk 00:05:11]} {[%emt 00:00:17]} Bc1 {[%clk
00:01:33]} {[%emt 00:00:55]} 75. Nf5+ {[%clk 00:05:36]} {[%emt 00:00:05]} Kh7
{[%clk 00:01:01]} {[%emt 00:01:02]} 76. Kf7 {[%clk 00:05:36]} {[%emt 00:00:30]}
Bg5 {[%clk 00:00:41]} {[%emt 00:00:51]} 77. Kf8 {[%clk 00:05:14]} {[%emt
00:00:51]} Bc1 {[%clk 00:00:48]} {[%emt 00:00:23]} 78. Bg8+ {[%clk 00:05:17]}
{[%emt 00:00:27]} Kh8 {[%clk 00:01:09]} {[%emt 00:00:09]} 79. Nh4 {[%clk
00:05:42]} {[%emt 00:00:05]} 1-0

[Event "6e festival d'échecs d'Allauch"]
[Site "Allauch, France"]
[Date "2024.08.30"]
[Round "8.5"]
[White "Sembel Rudelle, Gael"]
[Black "Caruncho, Alfonso"]
[Result "1-0"]
[TimeControl "1 h 30 min (+30s/coup)"]
[WhiteElo "1624"]
[BlackElo "1600"]

1. e4 {[%clk 01:30:57]} {[%emt 00:00:03]} e6 {[%clk 01:30:50]} {[%emt
00:00:11]} 2. Nf3 {[%clk 01:31:16]} {[%emt 00:00:10]} d5 {[%clk 01:31:09]}
{[%emt 00:00:11]} 3. e5 {[%clk 01:31:42]} {[%emt 00:00:05]} c5 {[%clk
01:31:23]} {[%emt 00:00:16]} 4. b4 {[%clk 01:32:07]} {[%emt 00:00:04]} cxb4
{[%clk 01:31:49]} {[%emt 00:00:03]} 5. a3 {[%clk 01:32:33]} {[%emt 00:00:06]}
Nc6 {[%clk 01:31:47]} {[%emt 00:00:30]} 6. axb4 {[%clk 01:32:58]} {[%emt
00:00:06]} Bxb4 {[%clk 01:30:54]} {[%emt 00:01:24]} 7. c3 {[%clk 01:33:24]}
{[%emt 00:00:04]} Be7 {[%clk 01:30:59]} {[%emt 00:00:24]} 8. d4 {[%clk
01:32:43]} {[%emt 00:01:12]} Bd7 {[%clk 01:25:18]} {[%emt 00:06:11]} 9. Bd3
{[%clk 01:32:16]} {[%emt 00:00:56]} a6 {[%clk 01:24:42]} {[%emt 00:01:07]} 10.
h4 {[%clk 01:24:43]} {[%emt 00:08:01]} f6 {[%clk 01:18:19]} {[%emt 00:06:54]}
11. Ng5 {[%clk 01:03:42]} {[%emt 00:21:30]} f5 {[%clk 01:17:30]} {[%emt
00:01:20]} 12. g4 {[%clk 01:02:02]} {[%emt 00:02:11]} g6 {[%clk 01:17:39]}
{[%emt 00:00:20]} 13. gxf5 {[%clk 01:02:13]} {[%emt 00:00:18]} exf5 {[%clk
01:17:57]} {[%emt 00:00:12]} 14. e6 {[%clk 01:02:39]} {[%emt 00:00:04]} Bxe6
{[%clk 01:13:46]} {[%emt 00:04:39]} 15. Nxe6 {[%clk 01:02:54]} {[%emt
00:00:16]} Qd6 {[%clk 01:13:41]} {[%emt 00:00:34]} 16. Qe2 {[%clk 01:02:25]}
{[%emt 00:01:02]} Nd8 {[%clk 01:12:10]} {[%emt 00:02:02]} 17. Bb5+ {[%clk
01:02:13]} {[%emt 00:00:41]} Nc6 {[%clk 01:11:21]} {[%emt 00:01:19]} 18. Bf4
{[%clk 01:02:26]} {[%emt 00:00:18]} 1-0

[Event "6e festival d'échecs d'Allauch"]
[Site "Allauch, France"]
[Date "2024.08.30"]
[Round "8.6"]
[White "Madi, Chahinez"]
[Black "Dorvaux-Valdieu, Teiva"]
[Result "0-1"]
[TimeControl "1 h 30 min (+30s/coup)"]
[WhiteElo "1668"]
[BlackElo "1679"]

1. e4 {[%clk 01:30:56]} {[%emt 00:00:04]} c6 {[%clk 01:30:54]} {[%emt
00:00:07]} 2. d4 {[%clk 01:31:20]} {[%emt 00:00:06]} d5 {[%clk 01:31:20]}
{[%emt 00:00:05]} 3. Nd2 {[%clk 01:31:45]} {[%emt 00:00:05]} dxe4 {[%emt
00:00:12]} 4. Nxe4 {[%clk 01:32:07]} {[%emt 00:00:05]} Nf6 {[%clk 01:32:02]}
{[%emt 00:00:08]} 5. Nxf6+ {[%clk 01:31:50]} {[%emt 00:00:47]} exf6 {[%clk
01:32:18]} {[%emt 00:00:14]} 6. c3 {[%clk 01:32:10]} {[%emt 00:00:11]} Bd6
{[%clk 01:32:31]} {[%emt 00:00:17]} 7. Bd3 {[%clk 01:32:09]} {[%emt 00:00:31]}
O-O {[%clk 01:32:27]} {[%emt 00:00:34]} 8. Qc2 {[%clk 01:30:39]} {[%emt
00:02:00]} Re8+ {[%clk 01:30:21]} {[%emt 00:02:36]} 9. Ne2 {[%clk 01:30:48]}
{[%emt 00:00:19]} g6 {[%clk 01:29:30]} {[%emt 00:01:23]} 10. Bh6 {[%clk
01:30:29]} {[%emt 00:00:50]} Nd7 {[%clk 01:24:54]} {[%emt 00:05:05]} 11. h4
{[%clk 01:29:18]} {[%emt 00:01:41]} f5 {[%clk 01:15:25]} {[%emt 00:09:59]} 12.
Bg5 {[%clk 01:21:27]} {[%emt 00:08:21]} Be7 {[%clk 01:13:55]} {[%emt 00:02:00]}
13. Bxe7 {[%clk 01:19:43]} {[%emt 00:02:14]} Qxe7 {[%clk 01:14:06]} {[%emt
00:00:19]} 14. h5 {[%clk 01:18:54]} {[%emt 00:01:20]} Nf6 {[%clk 01:13:42]}
{[%emt 00:00:53]} 15. hxg6 {[%clk 01:16:38]} {[%emt 00:02:46]} fxg6 {[%clk
01:13:26]} {[%emt 00:00:45]} 16. O-O-O {[%clk 01:16:14]} {[%emt 00:00:54]} Ne4
{[%clk 01:09:58]} {[%emt 00:03:59]} 17. Nf4 {[%clk 01:10:30]} {[%emt 00:06:09]}
Qg5 {[%clk 01:05:19]} {[%emt 00:05:13]} 18. g3 {[%clk 01:10:22]} {[%emt
00:00:38]} Be6 {[%clk 00:55:45]} {[%emt 00:10:03]} 19. Kb1 {[%clk 01:09:00]}
{[%emt 00:01:52]} Bf7 {[%clk 00:49:14]} {[%emt 00:07:02]} 20. Bxe4 {[%clk
00:39:31]} {[%emt 00:29:59]} Rxe4 {[%clk 00:45:40]} {[%emt 00:04:03]} 21. Nd3
{[%clk 00:37:39]} {[%emt 00:02:23]} Rae8 {[%clk 00:38:53]} {[%emt 00:07:16]} 22.
Ne5 {[%clk 00:35:14]} {[%emt 00:02:56]} Bd5 {[%clk 00:37:17]} {[%emt 00:02:06]}
23. Qa4 {[%clk 00:17:04]} {[%emt 00:18:38]} R4xe5 {[%clk 00:23:36]} {[%emt
00:14:14]} 24. dxe5 {[%clk 00:16:40]} {[%emt 00:00:54]} Bxh1 {[%clk 00:22:06]}
{[%emt 00:02:00]} 25. Rxh1 {[%clk 00:17:02]} {[%emt 00:00:09]} Qg4 {[%clk
00:19:00]} {[%emt 00:03:36]} 26. Qb3+ {[%clk 00:16:01]} {[%emt 00:01:29]} Kh8
{[%clk 00:18:35]} {[%emt 00:00:55]} 27. Qf7 {[%clk 00:15:38]} {[%emt 00:00:51]}
Qe4+ {[%clk 00:18:52]} {[%emt 00:00:15]} 28. Kc1 {[%clk 00:15:27]} {[%emt
00:00:41]} Qxh1+ {[%clk 00:19:17]} {[%emt 00:00:06]} 29. Kd2 {[%clk 00:15:39]}
{[%emt 00:00:12]} Qd5+ {[%clk 00:19:39]} {[%emt 00:00:14]} 30. Qxd5 {[%clk
00:15:45]} {[%emt 00:00:23]} cxd5 {[%clk 00:20:04]} {[%emt 00:00:05]} 31. f4
{[%clk 00:16:00]} {[%emt 00:00:15]} Kg8 {[%clk 00:19:31]} {[%emt 00:01:03]} 32.
Kd3 {[%clk 00:16:20]} {[%emt 00:00:10]} Kf7 {[%clk 00:19:48]} {[%emt 00:00:13]}
33. Kd4 {[%clk 00:15:42]} {[%emt 00:01:08]} Ke6 {[%clk 00:20:04]} {[%emt
00:00:13]} 34. Ke3 {[%clk 00:15:55]} {[%emt 00:00:17]} g5 {[%clk 00:20:14]}
{[%emt 00:00:21]} 0-1